[Event "Teplice Open 2019"]
[Site "Teplice"]
[Date "2019.06.21"]
[Round "7.25"]
[White "Kostolansky, Sebastian Lukas"]
[Black "Kett, Tim"]
[Result "1-0"]
[ECO "C91"]
[WhiteElo "2379"]
[BlackElo "2197"]
[Annotator "NA"]
[PlyCount "85"]
[EventDate "2019.06.15"]
[EventType "swiss"]
[EventCountry "CZE"]
[SourceTitle "playchess.com"]
[Source "ChessBase"]
[SourceQuality "1"]
[TimeControl "40/5400+30:1800+30"]

1. e4 {[%emt 0:00:00]} e5 {[%emt 0:00:00]} 2. Nf3 {[%emt 0:00:00]} Nc6 {[%emt 0:00:00]} 3. Bb5 {[%emt 0:00:00]} a6 {[%emt 0:00:02]} 4. Ba4 {[%emt 0:00:00]} Nf6 {[%emt 0:00:10]} 5. O-O {[%emt 0:14:49]} Be7 {[%emt 0:00:31]} 6. Re1 {[%emt 0:03:01]} b5 {[%emt 0:00:27]} 7. Bb3 {[%emt 0:00:11]} d6 {[%emt 0:00:19]} 8. c3 {[%emt 0:01:52]} O-O {[%emt 0:00:15]} 9. a4 {[%emt 0:01:45]} Bb7 {[%emt 0:06:46]} 10. d4 {[%emt 0:07:16]} Nd7 {[%emt 0:02:52]} 11. Nbd2 {[%emt 0:12:25]} Bf6 {[%emt 0:03:38]} 12. Nf1 {[%emt 0:04:04]} Re8 {[%emt 0:02:01]} 13. Ng3 {[%emt 0:07:32]} g6 {[%emt 0:00:48]} 14. Bh6 {[%emt 0:08:32]} Na5 {[%emt 0:07:43]} 15. axb5 {[%emt 0:05:56]} axb5 {[%emt 0:01:32]} 16. Ba2 {[%emt 0:00:10]} Nb6 {[%emt 0:11:55]} 17. dxe5 {[%emt 0:10:30]} dxe5 {[%emt 0:00:37]} 18. Qe2 {[%emt 0:01:53]} Nac4 {[%emt 0:02:04]} 19. Bb3 {[%emt 0:00:23]} Qe7 {[%emt 0:03:25]} 20. Nd2 {[%emt 0:04:55]} Qc5 {[%emt 0:06:10]} 21. Qf3 {[%emt 0:02:25]} Qe7 {[%emt 0:09:38]} 22. Qe2 {[%emt 0:06:58]} Qc5 {[%emt 0:04:15]} 23. Ndf1 {[%emt 0:00:11]} Bg7 {[%emt 0:14:48]} 24. Bxg7 {[%emt 0:03:14]} Kxg7 {[%emt 0:00:20]} 25. Qg4 {[%emt 0:02:43]} Kh8 {[%emt 0:01:38]} 26. Rxa8 {[%emt 0:00:12]} Rxa8 {[%emt 0:02:46]} 27. Qg5 {[%emt 0:00:14]} Qf8 {[%emt 0:00:59]} 28. Qf6+ {[%emt 0:00:52]} Kg8 {[%emt 0:04:08]} 29. Ne3 {[%emt 0:00:18]} Nd7 {[%emt 0:05:29]} 30. Qg5 {[%emt 0:01:15]} Nxe3 {[%emt 0:05:05]} 31. fxe3 {[%emt 0:00:53]} Qd8 {[%emt 0:02:53]} 32. Qh6 {[%emt 0:00:40]} Nc5 {[%emt 0:00:36]} 33. Bxf7+ {[%emt 0:00:16]} Kxf7 {[%emt 0:00:31]} 34. Qxh7+ {[%emt 0:00:04]} Ke6 {[%emt 0:00:11]} 35. Qxg6+ {[%emt 0:01:13]} Qf6 {[%emt 0:00:04]} 36. Qg4+ {[%emt 0:00:05]} Kd6 {[%emt 0:00:41]} 37. Rf1 {[%emt 0:00:15]} Qe6 {[%emt 0:01:04]} 38. Qg7 {[%emt 0:01:17]} Rg8 {[%emt 0:01:19]} 39. Nf5+ {[%emt 0:00:10]} Qxf5 {[%emt 0:00:45]} 40. Qxg8 {[%emt 0:00:16]} Qe6 {[%emt 0:00:56]} 41. Qf8+ {[%emt 0:30:23]} Qe7 {[%emt 0:30:32]} 42. Rd1+ {[%emt 0:00:03]} Ke6 {[%emt 0:00:19]} 43. Qf5# {[%emt 0:00:01] Kd5} 1-0

[Event "Teplice Open 2019"]
[Site "Teplice"]
[Date "2019.06.21"]
[Round "7.26"]
[White "Krishna Teja, N."]
[Black "Ivanov, Igor"]
[Result "1-0"]
[ECO "B06"]
[WhiteElo "2357"]
[BlackElo "2157"]
[Annotator "NA"]
[PlyCount "107"]
[EventDate "2019.06.15"]
[EventType "swiss"]
[EventCountry "CZE"]
[SourceTitle "playchess.com"]
[Source "ChessBase"]
[SourceQuality "1"]
[TimeControl "40/5400+30:1800+30"]

1. d4 {[%emt 0:00:58]} g6 {[%emt 0:00:02]} 2. e4 {[%emt 0:00:34]} Bg7 {[%emt 0:00:12]} 3. Nc3 {[%emt 0:00:04]} d6 {[%emt 0:00:47]} 4. f4 {[%emt 0:00:19]} a6 {[%emt 0:00:38]} 5. Nf3 {[%emt 0:02:56]} b5 {[%emt 0:00:11]} 6. Bd3 {[%emt 0:00:06]} Bb7 {[%emt 0:00:15]} 7. Qe2 {[%emt 0:01:41]} Nd7 {[%emt 0:06:07]} 8. e5 {[%emt 0:00:28]} Nh6 {[%emt 0:08:47]} 9. Ne4 {[%emt 0:01:13]} O-O {[%emt 0:01:17]} 10. e6 {[%emt 0:01:23]} Nf6 {[%emt 0:04:10]} 11. Neg5 {[%emt 0:07:01]} Bd5 {[%emt 0:13:44]} 12. exf7+ {[%emt 0:02:05]} Nxf7 {[%emt 0:00:14]} 13. Ne6 {[%emt 0:00:14]} Bxe6 {[%emt 0:00:10]} 14. Qxe6 {[%emt 0:00:05]} Kh8 {[%emt 0:11:15]} 15. O-O {[%emt 0:07:39]} Qd7 {[%emt 0:08:22]} 16. Re1 {[%emt 0:00:22]} Qxe6 {[%emt 0:04:20]} 17. Rxe6 {[%emt 0:00:03]} Rae8 {[%emt 0:01:36]} 18. Bd2 {[%emt 0:04:33]} Nd8 {[%emt 0:00:35]} 19. Re2 {[%emt 0:00:22]} Nd5 {[%emt 0:02:07]} 20. g3 {[%emt 0:02:16]} Nc6 {[%emt 0:03:53]} 21. c3 {[%emt 0:02:07]} Bf6 {[%emt 0:10:53]} 22. h4 {[%emt 0:10:01]} Nb6 {[%emt 0:01:42]} 23. Rae1 {[%emt 0:00:41]} Nc4 {[%emt 0:01:49]} 24. Bc1 {[%emt 0:04:07]} Nb6 {[%emt 0:07:01]} 25. Nh2 {[%emt 0:01:14]} Nd7 {[%emt 0:01:03]} 26. Ng4 {[%emt 0:00:41]} Kg7 {[%emt 0:02:35]} 27. Be4 {[%emt 0:02:20]} Nd8 {[%emt 0:00:40]} 28. Bd5 {[%emt 0:00:40]} c6 {[%emt 0:01:28]} 29. Bb3 {[%emt 0:00:30]} d5 {[%emt 0:00:55]} 30. f5 {[%emt 0:01:21]} Nf7 {[%emt 0:00:22]} 31. Nxf6 {[%emt 0:00:52]} Nxf6 {[%emt 0:00:48]} 32. fxg6 {[%emt 0:00:25]} hxg6 {[%emt 0:00:06]} 33. Rxe7 {[%emt 0:00:05]} Ne4 {[%emt 0:00:37]} 34. Rxe8 {[%emt 0:00:15]} Rxe8 {[%emt 0:00:03]} 35. Bc2 {[%emt 0:00:40]} Nfd6 {[%emt 0:00:57]} 36. Bf4 {[%emt 0:00:23]} Re6 {[%emt 0:01:08]} 37. Bxd6 {[%emt 0:01:19]} Rxd6 {[%emt 0:00:02]} 38. Bxe4 {[%emt 0:00:09]} Re6 {[%emt 0:00:05]} 39. Kf2 {[%emt 0:00:08]} dxe4 {[%emt 0:00:04]} 40. Ke3 {[%emt 0:00:05]} Rf6 {[%emt 0:00:06]} 41. g4 {[%emt 0:33:05]} Rf3+ {[%emt 0:30:07]} 42. Kxe4 {[%emt 0:00:18]} Rf2 {[%emt 0:00:04]} 43. b4 {[%emt 0:01:13]} Kf6 {[%emt 0:00:26]} 44. g5+ {[%emt 0:00:13]} Ke6 {[%emt 0:00:55]} 45. Kd3+ {[%emt 0:00:08]} Kf7 {[%emt 0:00:05]} 46. Re5 {[%emt 0:01:29]} Rf3+ {[%emt 0:00:35]} 47. Kc2 {[%emt 0:01:59]} Rh3 {[%emt 0:00:06]} 48. Re4 {[%emt 0:02:05]} Rh1 {[%emt 0:00:09]} 49. Kb2 {[%emt 0:00:36]} Rh2+ {[%emt 0:00:05]} 50. Kb3 {[%emt 0:00:03]} Rh3 {[%emt 0:00:03]} 51. Rf4+ {[%emt 0:01:14]} Kg7 {[%emt 0:00:04]} 52. Rf6 {[%emt 0:00:04]} Rxh4 {[%emt 0:00:03]} 53. Rxc6 {[%emt 0:00:09]} Rg4 {[%emt 0:00:02]} 54. Rc5 {[%emt 0:00:07]} 1-0

[Event "Teplice Open 2019"]
[Site "Teplice"]
[Date "2019.06.21"]
[Round "7.27"]
[White "Gavrilescu, David"]
[Black "Liska, Jiri"]
[Result "1/2-1/2"]
[ECO "D02"]
[WhiteElo "2475"]
[BlackElo "2275"]
[Annotator "ChessBase"]
[PlyCount "68"]
[EventDate "2019.06.15"]
[EventType "swiss"]
[EventCountry "CZE"]
[SourceTitle "playchess.com"]
[Source "ChessBase"]
[SourceQuality "1"]
[TimeControl "40/5400+30:1800+30"]

1. d4 {[%emt 0:00:00]} Nf6 {[%emt 0:00:00]} 2. Nf3 {[%emt 0:00:00]} g6 {[%emt 0:00:10]} 3. Nbd2 {[%emt 0:00:09]} d5 {[%emt 0:00:38]} 4. e3 {[%emt 0:00:15]} Bg7 {[%emt 0:00:29]} 5. b4 {[%emt 0:00:17]} O-O {[%emt 0:01:53]} 6. c4 {[%emt 0:00:33]} dxc4 {[%emt 0:03:56]} 7. Nxc4 {[%emt 0:01:25]} Bf5 {[%emt 0:08:02]} 8. Be2 {[%emt 0:01:31]} b6 {[%emt 0:04:17]} 9. Bb2 {[%emt 0:03:05]} Nbd7 {[%emt 0:08:27]} 10. b5 {[%emt 0:02:27]} Be4 {[%emt 0:05:40]} 11. O-O {[%emt 0:04:53]} c5 {[%emt 0:01:56]} 12. Rc1 {[%emt 0:06:22]} Rc8 {[%emt 0:05:02]} 13. a4 {[%emt 0:03:17]} Qc7 {[%emt 0:03:47]} 14. Nfd2 {[%emt 0:13:21]} Bb7 {[%emt 0:02:20]} 15. a5 {[%emt 0:03:45]} Ne4 {[%emt 0:17:16]} 16. Nb3 {[%emt 0:07:02]} Rfd8 {[%emt 0:05:18]} 17. Qe1 {[%emt 0:07:37]} Nd6 {[%emt 0:04:43]} 18. Ba1 {[%emt 0:13:22]} Bd5 {[%emt 0:08:05]} 19. dxc5 {[%emt 0:05:49]} Nxc5 {[%emt 0:01:58]} 20. Nxc5 {[%emt 0:06:27]} Qxc5 {[%emt 0:02:20]} 21. Nxd6 {[%emt 0:00:29]} Qxd6 {[%emt 0:00:42]} 22. Bxg7 {[%emt 0:00:46]} Kxg7 {[%emt 0:00:19]} 23. axb6 {[%emt 0:02:34]} axb6 {[%emt 0:00:58]} 24. Qd2 {[%emt 0:01:23]} Qe5 {[%emt 0:07:28]} 25. Rxc8 {[%emt 0:06:51]} Rxc8 {[%emt 0:00:07]} 26. Rd1 {[%emt 0:00:31]} Rc5 {[%emt 0:00:48]} 27. Qb4 {[%emt 0:02:31]} h5 {[%emt 0:02:53]} 28. h3 {[%emt 0:01:46]} Qg5 {[%emt 0:01:37]} 29. Bf1 {[%emt 0:02:09]} Kh7 {[%emt 0:01:08]} 30. Qd4 {[%emt 0:01:03]} h4 {[%emt 0:01:28]} 31. Ra1 {[%emt 0:01:39]} e5 {[%emt 0:00:54]} 32. Qb4 {[%emt 0:00:37]} Qf6 {[%emt 0:00:37]} 33. Ra4 {[%emt 0:01:49]} e4 {[%emt 0:00:22]} 34. Qd2 {[%emt 0:00:35]} Qc3 {[%emt 0:00:49]} 1/2-1/2

[Event "Teplice Open 2019"]
[Site "Teplice"]
[Date "2019.06.21"]
[Round "7.28"]
[White "Vogel, Roven"]
[Black "Pajeken, Wolfgang"]
[Result "0-1"]
[ECO "E21"]
[WhiteElo "2471"]
[BlackElo "2259"]
[Annotator "ChessBase"]
[PlyCount "80"]
[EventDate "2019.06.15"]
[EventType "swiss"]
[EventCountry "CZE"]
[SourceTitle "playchess.com"]
[Source "ChessBase"]
[SourceQuality "1"]
[TimeControl "40/5400+30:1800+30"]

1. Nf3 {[%emt 0:00:00]} Nf6 {[%emt 0:00:00]} 2. c4 {[%emt 0:00:00]} e6 {[%emt 0:00:00]} 3. Nc3 {[%emt 0:00:16]} Bb4 {[%emt 0:00:09]} 4. d4 {[%emt 0:01:18]} b6 {[%emt 0:00:31]} 5. g3 {[%emt 0:01:09]} Bb7 {[%emt 0:05:29]} 6. Bg2 {[%emt 0:00:10]} O-O {[%emt 0:01:39]} 7. O-O {[%emt 0:01:55]} Bxc3 {[%emt 0:03:52]} 8. bxc3 {[%emt 0:00:02]} d6 {[%emt 0:01:03]} 9. a4 {[%emt 0:08:02]} Nc6 {[%emt 0:02:21]} 10. d5 {[%emt 0:16:39]} Na5 {[%emt 0:02:51]} 11. Nd2 {[%emt 0:00:59]} exd5 {[%emt 0:01:14]} 12. cxd5 {[%emt 0:00:23]} Bxd5 {[%emt 0:01:42]} 13. e4 {[%emt 0:00:13]} Bb7 {[%emt 0:04:47]} 14. c4 {[%emt 0:00:48]} Re8 {[%emt 0:01:00]} 15. Bb2 {[%emt 0:07:12]} Nd7 {[%emt 0:01:41]} 16. Re1 {[%emt 0:07:50]} Nc5 {[%emt 0:09:33]} 17. Ra3 {[%emt 0:01:44]} Qd7 {[%emt 0:01:18]} 18. Qh5 {[%emt 0:01:48]} f6 {[%emt 0:01:26]} 19. g4 {[%emt 0:08:28]} Qf7 {[%emt 0:05:51]} 20. Qh4 {[%emt 0:08:55]} h6 {[%emt 0:12:58]} 21. Rh3 {[%emt 0:02:20]} Nxa4 {[%emt 0:01:40]} 22. Ba1 {[%emt 0:00:11]} Nc5 {[%emt 0:00:42]} 23. f4 {[%emt 0:00:16]} Ne6 {[%emt 0:01:05]} 24. Rf1 {[%emt 0:03:50]} Qe7 {[%emt 0:01:54]} 25. Qg3 {[%emt 0:02:31]} c5 {[%emt 0:04:23]} 26. g5 {[%emt 0:02:23]} hxg5 {[%emt 0:01:46]} 27. fxg5 {[%emt 0:00:33]} Nxg5 {[%emt 0:02:11]} 28. Rh5 {[%emt 0:01:30]} Nc6 {[%emt 0:05:53]} 29. Bxf6 {[%emt 0:06:25]} gxf6 {[%emt 0:00:28]} 30. Rxf6 {[%emt 0:09:18]} Qxf6 {[%emt 0:00:11]} 31. Rxg5+ {[%emt 0:01:55]} Kf7 {[%emt 0:00:54]} 32. Rf5 {[%emt 0:00:51]} Ne5 {[%emt 0:09:19]} 33. Qh4 {[%emt 0:03:45]} Qxf5 {[%emt 0:02:26]} 34. exf5 {[%emt 0:00:05]} Rh8 {[%emt 0:03:54]} 35. Qf4 {[%emt 0:00:01]} Rag8 {[%emt 0:01:52]} 36. Ne4 {[%emt 0:00:02]} Rg4 {[%emt 0:04:19]} 37. Nxd6+ {[%emt 0:00:06]} Kf6 {[%emt 0:00:24]} 38. Ne8+ {[%emt 0:00:18]} Rxe8 {[%emt 0:02:37]} 39. Qh6+ {[%emt 0:00:02]} Ke7 {[%emt 0:02:51]} 40. Qe6+ {[%emt 0:02:28]} Kd8 {[%emt 0:00:51]} 0-1

[Event "Teplice Open 2019"]
[Site "Teplice"]
[Date "2019.06.21"]
[Round "7.29"]
[White "Karas, Marek"]
[Black "Cernousek, Lukas"]
[Result "1/2-1/2"]
[ECO "D21"]
[WhiteElo "2268"]
[BlackElo "2466"]
[Annotator "ChessBase"]
[PlyCount "86"]
[EventDate "2019.06.15"]
[EventType "swiss"]
[EventCountry "CZE"]
[SourceTitle "playchess.com"]
[Source "ChessBase"]
[SourceQuality "1"]
[TimeControl "40/5400+30:1800+30"]

1. d4 {[%emt 0:00:00]} d5 {[%emt 0:00:00]} 2. c4 {[%emt 0:00:00]} dxc4 {[%emt 0:00:00]} 3. Nf3 {[%emt 0:00:04]} a6 {[%emt 0:00:00]} 4. a4 {[%emt 0:00:51]} Nc6 {[%emt 0:00:46]} 5. e3 {[%emt 0:00:40]} Na5 {[%emt 0:01:09]} 6. Ne5 {[%emt 0:04:21]} c5 {[%emt 0:45:14]} 7. Nxc4 {[%emt 0:05:33]} cxd4 {[%emt 0:00:34]} 8. exd4 {[%emt 0:02:17]} Nf6 {[%emt 0:00:23]} 9. Nxa5 {[%emt 0:04:26]} Qxa5+ {[%emt 0:00:02]} 10. Nc3 {[%emt 0:00:26]} Be6 {[%emt 0:06:35]} 11. Be2 {[%emt 0:04:18]} Bd5 {[%emt 0:01:33]} 12. O-O {[%emt 0:02:31]} e6 {[%emt 0:00:01]} 13. Nxd5 {[%emt 0:01:07]} Nxd5 {[%emt 0:00:09]} 14. Bf3 {[%emt 0:02:36]} Be7 {[%emt 0:12:13]} 15. Qb3 {[%emt 0:03:32]} O-O {[%emt 0:00:08]} 16. Qxb7 {[%emt 0:08:50]} Rab8 {[%emt 0:00:01]} 17. Qa7 {[%emt 0:05:13]} Ra8 {[%emt 0:00:04]} 18. Qb7 {[%emt 0:00:23]} Rfb8 {[%emt 0:00:06]} 19. Qd7 {[%emt 0:05:03]} Rd8 {[%emt 0:00:02]} 20. Qb7 {[%emt 0:00:24]} Rab8 {[%emt 0:00:19]} 21. Qa7 {[%emt 0:00:35]} Ra8 {[%emt 0:00:09]} 22. Qb7 {[%emt 0:00:12]} Rdb8 {[%emt 0:00:34]} 23. Qd7 {[%emt 0:00:29]} Bf6 {[%emt 0:00:19]} 24. Bxd5 {[%emt 0:01:17]} Rd8 {[%emt 0:15:38]} 25. Qb7 {[%emt 0:03:12]} Qxd5 {[%emt 0:00:10]} 26. Qxd5 {[%emt 0:00:28]} Rxd5 {[%emt 0:00:01]} 27. Be3 {[%emt 0:00:55]} Bxd4 {[%emt 0:03:08]} 28. Bxd4 {[%emt 0:02:30]} Rxd4 {[%emt 0:00:01]} 29. Rfc1 {[%emt 0:00:21]} Rb8 {[%emt 0:09:46]} 30. g3 {[%emt 0:03:42]} g6 {[%emt 0:01:14]} 31. Ra2 {[%emt 0:01:14]} Kg7 {[%emt 0:02:35]} 32. a5 {[%emt 0:01:11]} Rd6 {[%emt 0:01:49]} 33. Rc2 {[%emt 0:00:55]} Rb5 {[%emt 0:00:40]} 34. Ra4 {[%emt 0:01:29]} Rb3 {[%emt 0:01:02]} 35. Rf4 {[%emt 0:03:19]} e5 {[%emt 0:00:23]} 36. Rfc4 {[%emt 0:00:20]} Rd5 {[%emt 0:00:37]} 37. Rc5 {[%emt 0:00:22]} Rxc5 {[%emt 0:00:32]} 38. Rxc5 {[%emt 0:00:02]} Rxb2 {[%emt 0:00:28]} 39. Rxe5 {[%emt 0:00:13]} Ra2 {[%emt 0:00:25]} 40. Rc5 {[%emt 0:00:16]} Kf8 {[%emt 0:00:29]} 41. h4 {[%emt 0:32:01]} h5 {[%emt 0:02:05]} 42. f4 {[%emt 0:00:00]} Ke7 {[%emt 0:00:13]} 43. f5 {[%emt 0:00:00]} Ke8 {[%emt 0:02:42]} 1/2-1/2

[Event "Teplice Open 2019"]
[Site "Teplice"]
[Date "2019.06.21"]
[Round "7.30"]
[White "Brozyna, Mateusz"]
[Black "Haldorsen, Benjamin"]
[Result "1/2-1/2"]
[ECO "C55"]
[WhiteElo "2252"]
[BlackElo "2454"]
[Annotator "ChessBase"]
[PlyCount "109"]
[EventDate "2019.06.15"]
[EventType "swiss"]
[EventCountry "CZE"]
[SourceTitle "playchess.com"]
[Source "ChessBase"]
[SourceQuality "1"]
[TimeControl "40/5400+30:1800+30"]

1. e4 {[%emt 0:51:24]} e5 {[%emt 0:00:41]} 2. Nf3 {[%emt 0:01:12]} Nc6 {[%emt 0:00:08]} 3. Bc4 {[%emt 0:00:18]} Nf6 {[%emt 0:00:23]} 4. d3 {[%emt 0:00:08]} h6 {[%emt 0:00:05]} 5. c3 {[%emt 0:00:34]} d6 {[%emt 0:00:04]} 6. O-O {[%emt 0:00:08]} g5 {[%emt 0:00:03]} 7. Nbd2 {[%emt 0:06:38]} Bg7 {[%emt 0:01:05]} 8. Bb3 {[%emt 0:00:08]} O-O {[%emt 0:01:48]} 9. Nc4 {[%emt 0:00:33]} Be6 {[%emt 0:09:04]} 10. Re1 {[%emt 0:12:34]} Qd7 {[%emt 0:08:50]} 11. d4 {[%emt 0:12:24]} exd4 {[%emt 0:07:48]} 12. cxd4 {[%emt 0:01:31]} d5 {[%emt 0:16:28]} 13. Nce5 {[%emt 0:03:18]} Nxe5 {[%emt 0:00:50]} 14. Nxe5 {[%emt 0:00:27]} Qb5 {[%emt 0:03:18]} 15. exd5 {[%emt 0:10:45]} Bxd5 {[%emt 0:01:21]} 16. Ba4 {[%emt 0:04:24]} Qb6 {[%emt 0:02:00]} 17. Bc2 {[%emt 0:03:19]} Rad8 {[%emt 0:03:58]} 18. h4 {[%emt 0:02:09]} gxh4 {[%emt 0:02:42]} 19. Qd3 {[%emt 0:01:59]} Rfe8 {[%emt 0:02:56]} 20. Bf4 {[%emt 0:03:42]} Be6 {[%emt 0:04:26]} 21. Be3 {[%emt 0:02:53]} c5 {[%emt 0:01:49]} 22. Nf3 {[%emt 0:09:03]} h3 {[%emt 0:03:16]} 23. Qc3 {[%emt 0:04:18]} Nd5 {[%emt 0:06:29]} 24. Qxc5 {[%emt 0:05:58]} Qxc5 {[%emt 0:00:53]} 25. dxc5 {[%emt 0:00:02]} Nxe3 {[%emt 0:01:19]} 26. Rxe3 {[%emt 0:00:17]} hxg2 {[%emt 0:01:12]} 27. Be4 {[%emt 0:02:17]} Bc8 {[%emt 0:11:35]} 28. Kxg2 {[%emt 0:03:21]} Kf8 {[%emt 0:00:31]} 29. Rb1 {[%emt 0:03:29]} f5 {[%emt 0:06:10]} 30. Bc2 {[%emt 0:00:06]} Rxe3 {[%emt 0:00:54]} 31. fxe3 {[%emt 0:00:02]} Be6 {[%emt 0:00:38]} 32. b3 {[%emt 0:01:13]} Ke7 {[%emt 0:01:04]} 33. Rh1 {[%emt 0:03:54]} Rc8 {[%emt 0:00:41]} 34. b4 {[%emt 0:00:23]} b6 {[%emt 0:00:51]} 35. Bb3 {[%emt 0:03:00]} bxc5 {[%emt 0:00:21]} 36. bxc5 {[%emt 0:00:33]} Rxc5 {[%emt 0:00:05]} 37. Nd4 {[%emt 0:00:12]} Bd7 {[%emt 0:00:23]} 38. Rf1 {[%emt 0:00:39]} a5 {[%emt 0:00:36]} 39. Kf3 {[%emt 0:00:36]} a4 {[%emt 0:02:41]} 40. Bg8 {[%emt 0:00:02]} Kf8 {[%emt 0:00:51]} 41. Ne6+ {[%emt 0:00:21]} Bxe6 {[%emt 0:00:35]} 42. Bxe6 {[%emt 0:00:03]} Ke7 {[%emt 0:02:19]} 43. Bg8 {[%emt 0:00:58]} Be5 {[%emt 0:05:56]} 44. Rh1 {[%emt 0:03:14]} Kf6 {[%emt 0:00:56]} 45. Rh4 {[%emt 0:04:44]} a3 {[%emt 0:00:40]} 46. Rc4 {[%emt 0:00:25]} Ra5 {[%emt 0:05:17]} 47. Rc6+ {[%emt 0:01:09]} Kg7 {[%emt 0:00:03]} 48. Bc4 {[%emt 0:01:32]} h5 {[%emt 0:01:18]} 49. Bd3 {[%emt 0:00:47]} Bf6 {[%emt 0:01:11]} 50. Ra6 {[%emt 0:00:54]} Rxa6 {[%emt 0:00:24]} 51. Bxa6 {[%emt 0:00:07]} Be5 {[%emt 0:00:03]} 52. Bf1 {[%emt 0:00:13]} Kf6 {[%emt 0:00:05]} 53. Bh3 {[%emt 0:00:18]} Bc7 {[%emt 0:00:48]} 54. Bf1 {[%emt 0:00:38]} Ke5 {[%emt 0:01:32]} 55. Bh3 {[%emt 0:00:13]} 1/2-1/2

[Event "Teplice Open 2019"]
[Site "Teplice"]
[Date "2019.06.21"]
[Round "7.31"]
[White "Ahlander, Bjorn"]
[Black "Freisler, Pavel"]
[Result "0-1"]
[ECO "E00"]
[WhiteElo "2421"]
[BlackElo "2246"]
[Annotator "ChessBase"]
[PlyCount "158"]
[EventDate "2019.06.15"]
[EventType "swiss"]
[EventCountry "CZE"]
[SourceTitle "playchess.com"]
[Source "ChessBase"]
[SourceQuality "1"]
[TimeControl "40/5400+30:1800+30"]

1. d4 {[%emt 0:00:00]} Nf6 {[%emt 0:00:00]} 2. c4 {[%emt 0:00:00]} e6 {[%emt 0:00:32]} 3. g3 {[%emt 0:00:00]} Bb4+ {[%emt 0:00:25]} 4. Nd2 {[%emt 0:00:45]} O-O {[%emt 0:04:49]} 5. Bg2 {[%emt 0:00:03]} d6 {[%emt 0:00:04]} 6. a3 {[%emt 0:04:52]} Bxd2+ {[%emt 0:00:36]} 7. Qxd2 {[%emt 0:00:04]} Nbd7 {[%emt 0:03:26]} 8. e3 {[%emt 0:04:23]} e5 {[%emt 0:15:37]} 9. Ne2 {[%emt 0:01:49]} Qe7 {[%emt 0:02:47]} 10. O-O {[%emt 0:01:51]} Re8 {[%emt 0:00:58]} 11. b4 {[%emt 0:07:23]} a5 {[%emt 0:02:17]} 12. Bb2 {[%emt 0:01:49]} Nb6 {[%emt 0:04:14]} 13. Qc2 {[%emt 0:07:38]} axb4 {[%emt 0:17:55]} 14. axb4 {[%emt 0:00:17]} Rxa1 {[%emt 0:00:04]} 15. Rxa1 {[%emt 0:00:10]} exd4 {[%emt 0:00:07]} 16. Nxd4 {[%emt 0:01:14]} d5 {[%emt 0:01:24]} 17. cxd5 {[%emt 0:11:56]} Nbxd5 {[%emt 0:10:14]} 18. b5 {[%emt 0:01:05]} h5 {[%emt 0:00:13]} 19. e4 {[%emt 0:09:22]} Nb6 {[%emt 0:10:24]} 20. Rc1 {[%emt 0:09:31]} h4 {[%emt 0:02:18]} 21. f3 {[%emt 0:02:40]} hxg3 {[%emt 0:07:23]} 22. hxg3 {[%emt 0:00:03]} Qb4 {[%emt 0:00:16]} 23. Ba1 {[%emt 0:02:10]} Bd7 {[%emt 0:02:55]} 24. Qxc7 {[%emt 0:12:41]} Rc8 {[%emt 0:00:36]} 25. Qf4 {[%emt 0:00:03]} Rxc1+ {[%emt 0:03:09]} 26. Qxc1 {[%emt 0:00:03]} Bxb5 {[%emt 0:00:32]} 27. Nf5 {[%emt 0:00:17]} Bd7 {[%emt 0:02:41]} 28. Nxg7 {[%emt 0:01:24]} Kxg7 {[%emt 0:05:13]} 29. Qg5+ {[%emt 0:00:02]} Kf8 {[%emt 0:00:01]} 30. Bxf6 {[%emt 0:02:02]} Be6 {[%emt 0:00:54]} 31. Qg7+ {[%emt 0:09:45]} Ke8 {[%emt 0:00:01]} 32. Qg8+ {[%emt 0:00:31]} Kd7 {[%emt 0:01:21]} 33. Qd8+ {[%emt 0:00:27]} Kc6 {[%emt 0:00:01]} 34. f4 {[%emt 0:00:41]} Nd7 {[%emt 0:00:57]} 35. f5 {[%emt 0:03:55]} Qe1+ {[%emt 0:01:52]} 36. Kh2 {[%emt 0:00:07]} Qf2 {[%emt 0:00:40]} 37. e5+ {[%emt 0:00:52]} Bd5 {[%emt 0:00:01]} 38. Kh3 {[%emt 0:04:36]} Bxg2+ {[%emt 0:00:59]} 39. Kg4 {[%emt 0:02:05]} Qf3+ {[%emt 0:00:33]} 40. Kg5 {[%emt 0:00:24]} Qxg3+ {[%emt 0:00:47]} 41. Kh6 {[%emt 0:30:50]} Qh3+ {[%emt 0:03:32]} 42. Kg7 {[%emt 0:00:00]} Qxf5 {[%emt 0:00:34]} 43. Qe7 {[%emt 0:00:00]} Qg6+ {[%emt 0:05:47]} 44. Kh8 {[%emt 0:00:00]} Qh6+ {[%emt 0:00:06]} 45. Kg8 {[%emt 0:00:00]} Nxf6+ {[%emt 0:00:02]} 46. exf6 {[%emt 0:00:00]} Qg5+ {[%emt 0:01:18]} 47. Kh8 {[%emt 0:00:00]} Qd5 {[%emt 0:01:05]} 48. Qe8+ {[%emt 0:00:00]} Qd7 {[%emt 0:01:08]} 49. Qe2 {[%emt 0:00:00]} Bd5 {[%emt 0:01:30]} 50. Qc2+ {[%emt 0:00:00]} Kb6 {[%emt 0:00:25]} 51. Kg7 {[%emt 0:00:00]} Qg4+ {[%emt 0:02:19]} 52. Kf8 {[%emt 0:00:00]} Qb4+ {[%emt 0:01:11]} 53. Kg7 {[%emt 0:00:00]} Qc4 {[%emt 0:00:24]} 54. Qb2+ {[%emt 0:00:00]} Kc6 {[%emt 0:00:22]} 55. Qa3 {[%emt 0:00:00]} Qc5 {[%emt 0:02:03]} 56. Qa8 {[%emt 0:00:00]} Kd7 {[%emt 0:00:38]} 57. Qa4+ {[%emt 0:00:00]} b5 {[%emt 0:00:02]} 58. Qg4+ {[%emt 0:00:00]} Kc7 {[%emt 0:00:36]} 59. Qf4+ {[%emt 0:00:00]} Qd6 {[%emt 0:01:00]} 60. Qe3 {[%emt 0:00:00]} Kb7 {[%emt 0:00:19]} 61. Qd4 {[%emt 0:00:00]} b4 {[%emt 0:00:52]} 62. Kg8 {[%emt 0:00:00]} b3 {[%emt 0:00:30]} 63. Kg7 {[%emt 0:00:00]} Qc6 {[%emt 0:01:03]} 64. Qb4+ {[%emt 0:00:00]} Qb6 {[%emt 0:00:51]} 65. Qe7+ {[%emt 0:00:00]} Ka6 {[%emt 0:00:48]} 66. Qa3+ {[%emt 0:00:00]} Kb5 {[%emt 0:00:20]} 67. Qb2 {[%emt 0:00:38]} Qg1+ {[%emt 0:01:53]} 68. Kf8 {[%emt 0:00:22]} Qe3 {[%emt 0:00:07]} 69. Qh2 {[%emt 0:01:17]} Qd4 {[%emt 0:00:51]} 70. Qe2+ {[%emt 0:00:37]} Kb4 {[%emt 0:00:33]} 71. Kg7 {[%emt 0:01:28]} b2 {[%emt 0:00:17]} 72. Qe1+ {[%emt 0:02:35]} Kb3 {[%emt 0:00:26]} 73. Qg3+ {[%emt 0:00:28]} Ka2 {[%emt 0:00:30]} 74. Qh2 {[%emt 0:02:58]} Ka1 {[%emt 0:00:50]} 75. Qd6 {[%emt 0:00:57]} b1=Q {[%emt 0:00:44]} 76. Qa3+ {[%emt 0:00:07]} Ba2 {[%emt 0:00:07]} 77. Qe7 {[%emt 0:03:06]} Qg6+ {[%emt 0:00:21]} 78. Kf8 {[%emt 0:00:10]} Qh6+ {[%emt 0:00:22]} 79. Ke8 {[%emt 0:00:21]} Qh8+ {[%emt 0:00:18]} 0-1